Cogmind - Beta 11.1 @@@ ROGUE MODE // 2022.08.26 @ 03:52:14 Player: Ms Vella Result: Destroyed by as-48294 with Assembled Rifle Performance ------------- Evolutions (0) 0 Regions Visited (2) 400 Robots Destroyed (16) 80 Value Destroyed (322) 322 Prototype IDs (2) 40 Alien Tech Used (0) 0 Bonus (0) 0 TOTAL SCORE: 842 Bonus ------- None Cogmind --------- Core Integrity 0/250 Matter 141/300 Energy 79/100 System Corruption 0% Temperature Cool (0) Movement Core (350) Ox6 Location -10/Mines Parts ------- > --- POWER (1) -------- (None) > --- PROPULSION (2) --- (None) > --- UTILITY (2) ------ Large Storage Unit > --- WEAPON (2) ------- Light Assault Rifle > --- INVENTORY (15) --- Aluminum Leg Aluminum Leg Improved Heat Sink Large Storage Unit Medium Laser Peak State ------------ > --- POWER ------------ Ion Engine > --- PROPULSION ------- Light Treads Light Treads > --- UTILITY ---------- Small Storage Unit Large Storage Unit > --- WEAPON ----------- Assault Rifle Light Assault Rifle > --- INVENTORY -------- Aluminum Leg Aluminum Leg Aluminum Leg Medium Laser Grenade Launcher Grenade Launcher [Rating: 7] Favorites ----------- Power Ion Engine Engine Ion Engine Propulsion Light Treads Treads Light Treads Leg Aluminum Leg Utility Large Storage Unit Storage Large Storage Unit Weapon Light Assault Rifle Energy Gun Medium Laser Ballistic Gun Light Assault Rifle Launcher Grenade Launcher Build | -11 -10 -10 ------- Run | Scr Mat Min Slots Evolved . | . . . Power . | . . . Propulsion . | . . . Utility . | . . . Weapon . | . . . Parts Attached 13 | 3 3 7 Power 2 | 1 . 1 Engine 2 | 1 . 1 Core . | . . . Reactor . | . . . Propulsion 4 | 2 . 2 Treads 2 | 2 . . Leg 2 | . . 2 Wheel . | . . . Hover . | . . . Flight . | . . . Utility 1 | . 1 . Device . | . . . Storage 1 | . 1 . Processor . | . . . Hackware . | . . . Protection . | . . . Artifact . | . . . Weapon 6 | . 2 4 Energy Gun . | . . . Energy Cannon . | . . . Ballistic Gun 3 | . 1 2 Ballistic Cannon . | . . . Launcher 3 | . 1 2 Special Weapon . | . . . Impact Weapon . | . . . Slashing Weapon . | . . . Piercing Weapon . | . . . Special Melee Weapon . | . . . Unidentified Prototypes . | . . . Parts Lost 9 | . . 9 Power 2 | . . 2 Propulsion 4 | . . 4 Utility . | . . . Weapon 3 | . . 3 Highest Loss Streak 6 | . . 6 To Critical Strikes . | . . . Average Slot Usage (%) 82 | . 85 80 Engine 13 | . 14 13 Treads 19 | . 28 12 Leg 7 | . . 12 Storage 14 | . 14 14 Energy Gun 1 | . 2 . Ballistic Gun 24 | . 24 25 Launcher 1 | . 1 1 Naked Turns . | . . . Heaviest Build 33 | 13 33 30 Greatest Support 40 | 40 40 40 Greatest Overweight (x) 1 | . . 1 Average Overweight (x) . | . . . Largest Inventory Capacity 15 | 8 15 15 Average Capacity 12 | 8 9 15 Most Carried 9 | 6 7 9 Average Carried 5 | 3 3 7 Final Capacity 15 | 8 15 15 Final Carried 7 | 1 7 5 Class Distribution -------------------- 100% | Mutant Dominant Class ---------------- Mutant | -10/Materials Mutant | -10/Mines Resources | -11 -10 -10 ----------- Run | Scr Mat Min Matter Collected 379 | 230 60 89 Remotely . | . . . Salvage Created 383 | . 209 174 Parts 26 | . 15 11 Haulers Intercepted . | . . . Recyclers Shooed . | . . . Parts Field Recycled . | . . . Retrieved Matter . | . . . Parts Self-Destructed . | . . . Prevented . | . . . Kills | -11 -10 -10 ------- Run | Scr Mat Min Combat Hostiles Destroyed 26 | . 7 19 Guns 10 | . 4 6 AOE 16 | . 3 13 Classes Destroyed 4 | . 3 1 Builder 1 | . 1 . Swarmer 9 | . 3 6 Grunt 6 | . 4 2 Assembled 11 | . . 11 Best Kill Streak 11 | . 4 11 Combat Bots Only 11 | . 3 11 Max Kills in Single Turn 4 | . 3 4 Gunslinging . | . . . Exploded 4 | . 2 4 Melee . | . . . Uniques/NPCs Destroyed . | . . . Combat | -11 -10 -10 -------- Run | Scr Mat Min Damage Taken 1228 | . 150 1078 Core 261 | . 29 232 Absorbed by Shields . | . . . Core Remaining (%) 100 | 100 . . Volleys Fired 46 | . 14 32 Largest 2 | . 2 2 Hottest 40 | . 40 40 Shots Fired 79 | . 26 53 Gun 67 | . 24 43 Cannon . | . . . Launcher 12 | . 2 10 Special . | . . . Kinetic 67 | . 24 43 Thermal . | . . . Explosive 12 | . 2 10 Electromagnetic . | . . . Robot Hit Streak 13 | . 13 3 Robot Miss Streak 4 | . 1 4 Penetration Max . | . . . Secondary Targets 1 | . . 1 Max Gunslinging Chain 1 | . . 1 Shots Hit Robots 45 | . 23 22 Core Hits 53 | . 14 39 Critical Kills . | . . . Critical Parts Destroyed . | . . . Critical Strikes . | . . . Melee Attacks . | . . . Impact . | . . . Slashing . | . . . Piercing . | . . . Sneak Attacks . | . . . Combat Hostiles . | . . . Follow-up Attacks . | . . . Damage Inflicted 1581 | . 449 1132 Guns 431 | . 218 213 Cannons . | . . . Explosions 1150 | . 231 919 Melee . | . . . Ramming . | . . . Kinetic 431 | . 218 213 Thermal . | . . . Explosive 1150 | . 231 919 Electromagnetic . | . . . Impact . | . . . Slashing . | . . . Piercing . | . . . Highest Corruption . | . . . Average Corruption . | . . . Corruption Purged . | . . . Corruption Blocked . | . . . Overload Shots . | . . . Overflow Damage 32 | . . 32 Projectiles . | . . . Explosions 32 | . . 32 Melee . | . . . Knockbacks . | . . . Impact . | . . . Kinetic . | . . . Secondary . | . . . Self-Inflicted Damage 115 | . 2 113 Shots 5 | . 1 4 Rammed . | . . . Targets Rammed . | . . . Kicked . | . . . Crushed . | . . . Highest Temperature 45 | . 12 45 Average Temperature 19 | . 6 26 Received Heat Transfer 257 | . 78 179 Siege Activations . | . . . Robots Corrupted . | . . . Combat Hostiles . | . . . Parts Fried . | . . . Impact Corruptions . | . . . Robots Melted . | . . . Combat Hostiles . | . . . Parts Melted . | . . . Heat Transferred . | . . . Parts Sabotaged . | . . . Parts Stolen . | . . . Parts Stripped . | . . . Power Chain Reactions . | . . . Missiles Intercepted . | . . . Alert | -11 -10 -10 ------- Run | Scr Mat Min Peak Influence 354 | . 233 354 Initial 90 | . . 90 Average 186 | . 86 266 Maximum Alert Level 1 | . 1 1 Low Security (%) 48 | 100 92 15 Level 1 51 | . 7 84 Level 2 . | . . . Level 3 . | . . . Level 4 . | . . . Level 5 . | . . . High Security . | . . . Max Security . | . . . Squads Dispatched 2 | . 2 . Investigation . | . . . Extermination . | . . . Reinforcement 2 | . 2 . Assault . | . . . Garrison . | . . . Intercept . | . . . Searches Triggered . | . . . Construction Impeded . | . . . Haulers Reinforced . | . . . Active Scanning Responses . | . . . Cargo Convoy Interrupts . | . . . Stealth | -11 -10 -10 --------- Run | Scr Mat Min Distress Signals 2 | . 2 . Communications Jammed . | . . . Distress Signals . | . . . Times Spotted 34 | . 9 25 Peak Tracking Total 17 | . 5 17 Tactical Retreats 1 | . 1 . Traps | -11 -10 -10 ------- Run | Scr Mat Min Traps Triggered . | . . . Indirectly . | . . . Trap Hack Attempts . | . . . Triggered . | . . . Disarmed . | . . . Reprogrammed . | . . . Reused . | . . . Traps Extracted . | . . . Installed . | . . . Triggered . | . . . Machines | -11 -10 -10 ---------- Run | Scr Mat Min Machines Disabled 1 | . . 1 Max in Single Turn 1 | . . 1 Machines Sabotaged . | . . . Garrisons Compromised . | . . . Overloaded Fab Kills . | . . . Hacking | -11 -10 -10 --------- Run | Scr Mat Min Machines Accessed 1 | . 1 . Terminals 1 | . 1 . Fabricators . | . . . Repair Stations . | . . . Recycling Units . | . . . Scanalyzers . | . . . Garrison Access . | . . . Total Hacks 4 | . 4 . Successful 2 | . 2 . Failed 2 | . 2 . Catastrophic . | . . . Database Lockouts . | . . . Manual 3 | . 3 . Terminals 4 | . 4 . Fabricators . | . . . Repair Stations . | . . . Recycling Units . | . . . Scanalyzers . | . . . Garrison Access . | . . . Terminal Hacks 1 | . 1 . Prototype ID Bank 1 | . 1 . Fabricator Hacks . | . . . Repair Station Hacks . | . . . Recycling Unit Hacks . | . . . Scanalyzer . | . . . Garrison Access Hacks . | . . . Unauthorized Hacks 1 | . 1 . Terminals 1 | . 1 . Botnet 1 | . 1 . Fabricators . | . . . Repair Stations . | . . . Recycling Units . | . . . Scanalyzers . | . . . Garrison Access . | . . . Data Cores Recovered . | . . . Used . | . . . Hacking Detections 1 | . 1 . Full Trace Events . | . . . Feedback Events . | . . . Feedback Blocked . | . . . Robot Schematics Acquired . | . . . Robots Built . | . . . Authchips . | . . . Time . | . . . Total Robot Build Rating . | . . . Part Schematics Acquired . | . . . Parts Built . | . . . Authchips . | . . . Time . | . . . Total Part Build Rating . | . . . Parts Repaired . | . . . Time . | . . . Parts Recycled . | . . . Recycled Matter . | . . . Retrieved Matter . | . . . Retrieved Components . | . . . Parts Scanalyzed . | . . . Part Schematics Acquired . | . . . Parts Damaged . | . . . Bothacking | -11 -10 -10 ------------ Run | Scr Mat Min Used RIF Installer . | . . . Robots Hacked . | . . . Non-combat . | . . . Combat . | . . . Robot Hacks Applied . | . . . Relay Couplers Released . | . . . Fabnet Peak Effective % . | . . . Robots Rewired . | . . . Allies Hacked . | . . . Hacks Repelled . | . . . Allies | -11 -10 -10 -------- Run | Scr Mat Min Total Allies . | . . . Largest Group . | . . . Highest-Rated Group . | . . . Highest-Rated Ally . | . . . Total Orders . | . . . Ally Attacks . | . . . Total Damage . | . . . Kills . | . . . Allies Corrupted . | . . . Allies Melted . | . . . Intel | -11 -10 -10 ------- Run | Scr Mat Min Robot Analysis Total . | . . . Derelict Logs Recovered 1 | . . 1 Drone Launches . | . . . Drone Recoveries . | . . . Exploration | -11 -10 -10 ------------- Run | Scr Mat Min Turns Passed 541 | 9 228 304 Spaces Moved 224 | 3 103 118 Core . | . . . Treads 156 | 2 103 51 Legs 68 | 1 . 67 Wheels . | . . . Hover . | . . . Flight . | . . . Fastest Speed 120 | 120 160 160 Average Speed 168 | 146 160 177 Slowest Speed 190 | 160 160 190 Overloaded Moves . | . . . Propulsion Burnouts . | . . . Robots Hopped . | . . . Cave-ins Triggered . | . . . Exploration Rate (%) 22 | 2 28 38 Regions Visited 2 Branch Regions 1 Pre-discovered Areas . | . . . Known Exits Taken . | . . . Unknown Exits Taken 2 | 1 1 . Scrap Searched . | . . . Spaces Dug . | . . . Terrain Destroyed 94 | . 15 79 Melee . | . . . Projectile . | . . . AOE 94 | . 15 79 Terrain Rammed . | . . . Walls Destroyed . | . . . Machines Disabled . | . . . Actions | -11 -10 -10 --------- Run | Scr Mat Min Total 316 | 10 142 164 Wait 21 | . 16 5 Move 222 | 2 102 118 Hop . | . . . Pick Up 8 | . 6 2 Fast Attach 2 | . 1 1 Attach 7 | 3 . 4 Detach . | . . . Swap 4 | . 2 2 Drop 6 | 5 1 . Fire 46 | . 14 32 Melee . | . . . Ram . | . . . Kick . | . . . Crush . | . . . Escape Stasis . | . . . Rewire . | . . . Trap . | . . . Miscellaneous . | . . . Route ------- -11/Scrapyard -10/Materials -10/Mines (discovered 1 exit: [*Mat]) History --------- Turn | Location | Event 1 | -11/Scrapyard | Discovered new exit (range 3) 10 | -11/Scrapyard | Entered Materials 209 | -10/Materials | Discovered new exit (range 13) 238 | -10/Materials | Entered Mines 302 | -10/Mines | Build established: Mutant 303 | -10/Mines | Discovered new exit (range 9) 365 | -10/Mines | Learned Materials terminal intel 414 | -10/Mines | Lost 3 parts (1p2n) 516 | -10/Mines | Assembled infested the area 535 | -10/Mines | Core integrity fell below 50% 540 | -10/Mines | Core integrity fell below 20% 542 | -10/Mines | Destroyed by as-48294 with Assembled Rifle Last Messages --------------- 00528_ as-41117 destroyed. 00530_ Destroyed Asb. F-torch. 00530_ as-70944 destroyed. 00530_ Assault Rifle destroyed. 00532_ as-21294 destroyed. 00532_ as-06860 destroyed. 00534_ Aluminum Leg destroyed. 00536_ as-45620 destroyed. 00536_ Lgt. Ion Engine destroyed. 00536_ Destroyed Lgt. Ion Engine. 00536_ as-32214 destroyed. 00536_ Grenade Launcher destroyed. 00539_ as-47389 destroyed. 00539_ Aluminum Leg destroyed. 00539_ Destroyed Aluminum Leg. 00539_ Grenade Launcher destroyed. 00539_ Destroyed Grenade Launcher. 00539_ as-79847 destroyed. 00540_ as-08883 destroyed. 00542_ as-05594 destroyed. Map ----- +----------------------------------------------------+ | ???????????????????????????????? | | ???????????????????????????????? | | ???????????????????????????????? | | ???????????????????????????????? | | ???????????????????????????????? | | ???????????????????????????????? | | ???????????????????????????????? | | ???????????????????????????????? | | ???????????????????????????????? | | ???????????????????????????????? | | ????? ?????????????????????? | | ????# ????????????????????? | | ???##a ????????????????????? | | ??? a ????????????????????? | | ???# ????????????????????? | | ???# ##???????????????????? | | ??? a #???????????????????? | | ???# ##??????????????????? | | ??## #??????????????????? | | ??? #??????????????????? | | ???# ???????????????????? | | ??## #???????????????????? | | ??# #???????????????????? | | ???# #???????????????????? | | ???## #######??????????????? | | ???# @ #??????????????? | | ???# #### #??????????????# | | ???#### ##??# #??????????????# | | ??????#####???# ############???# | | ??????????????# #??## | | ??????????????## ######### #?## | | ???????????????# #???????# #?# | | ????????????#### #???????# #?# | | ????????????# ####????# #?# | | ????????????# #### ###### ### | | ??????????### ## | | ??????????# | | ?????????# ####### ## | | ?????????# ##?????# ### | | ?????????## ##??????# #?# | | ??????????## #???????# #?? | | ???????????# ?????? #?? | | ??????????# ###?????##??? | | ??????????# #???????????? | | ??????????## ##???????????? | | ???????????########????????????? | | ???????????????????????????????? | | | | | | | +----------------------------------------------------+ Best States ------------- Heat Dissipation 25 Energy Generation 10 Energy Capacity 250 Matter Stores 300 Matter Capacity 300 Sight Range 16 Terrain Scan Density 10 Evasion (%) 40 Recoil Reduction 2 Item Schematics ----------------- None Robot Schematics ------------------ None Fabricated ------------ Nothing Alien Tech Used ----------------- None Achievements -------------- None Challenges ------------ None Game ------ Seed CoolingLayeredWings Manual? 0 Play Time 00:07:36 Cumulative 1044.4 hours Start 2022.08.26 @ 03:45:16 End 2022.08.26 @ 03:52:14 Sessions 1 Manual Loads 0 Difficulty Rogue Special Mode None Game No. 218 Rogue 2 Adventurer 216 Explorer 0 Win Type - Total 5 Types 4/0/1/0/0/0/0/0/0 Lore% 71 Gallery% 85 Achievement% 66 Wizard Run 0 Options --------- ASCII 0 Keyboard 0 Movement Mouse Keybinds 0 Fullscreen 0 Font 16/SmallcapsGlow Map View 76x50 Tactical HUD 1 Map Filters NONE Filters BRIGHTNESS(125)|SATURATION(75)|LOW_CONTRAST(13,24,33)|SHIFT_HUE(130) Steam 1 RUN: 14bc4b53-e6dc-4e86-a3e1-00e05b846c80